fUSD/lending_fUSD_20250105
["ID","MTS","AMOUNT","RATE_DAILY","PERIOD"]
[347712730,1736077850494,-500.0,8.493e-05,2]
[347712731,1736077850503,-500.0,8.493e-05,2]
[347712732,1736077850512,-500.0,8.493e-05,2]
[347712733,1736077850521,-500.0,8.493e-05,2]
[347712734,1736077850531,-500.0,8.493e-05,2]
[347712735,1736077850540,-1134.87,8.493e-05,2]
[347712736,1736077850550,-4016.18,8.493e-05,2]
[347712737,1736077850559,-1438.49,8.493e-05,2]
[347712738,1736077850568,-500.0,8.493e-05,2]
[347712739,1736077850578,-500.0,8.493e-05,2]
[347712740,1736077850587,-1007.93,8.493e-05,2]
[347712741,1736077850596,-1188.37,8.493e-05,2]
[347712742,1736077850605,-5853.8,8.493e-05,2]
[347712743,1736077850614,-500.0,8.493e-05,2]
[347712744,1736077850623,-799.75,8.493e-05,2]
[347712745,1736077850632,-500.0,8.493e-05,2]
[347712746,1736077850641,-298.094105,8.493e-05,2]
[347712747,1736077850650,-500.0,8.493e-05,2]
[347712748,1736077850659,-1191.39,8.493e-05,2]
[347712749,1736077850668,-500.0,8.493e-05,2]
[347712750,1736077850678,-500.0,8.493e-05,2]
[347712751,1736077850687,-500.0,8.493e-05,2]
[347712752,1736077850700,-500.0,8.493e-05,2]
[347712753,1736077850709,-743.67,8.493e-05,2]
[347712754,1736077850719,-500.0,8.493e-05,2]
[347712755,1736077850730,-624.57,8.493e-05,2]
[347712756,1736077850740,-500.0,8.493e-05,2]
[347712757,1736077850750,-10885.06,8.493e-05,2]
[347712758,1736077850760,-8164.25,8.493e-05,2]
[347712759,1736077850770,-500.0,8.493e-05,2]
[347712760,1736077850779,-500.0,8.493e-05,2]
[347712761,1736077850788,-2029.13,8.493e-05,2]
[347712762,1736077850798,-500.0,8.493e-05,2]
[347712763,1736077850807,-1294.01,8.493e-05,2]
[347712764,1736077850816,-500.0,8.493e-05,2]
[347712765,1736077850825,-826.38,8.493e-05,2]
[347712766,1736077850834,-500.0,8.493e-05,2]
[347712767,1736077850843,-847.41,8.493e-05,2]
[347712768,1736077850852,-500.0,8.493e-05,2]
[347712769,1736077850862,-500.0,8.493e-05,2]
[347712770,1736077850871,-1674.94,8.493e-05,2]
[347712771,1736077850881,-1922.04,8.493e-05,2]
[347712772,1736077850891,-4178.12,8.493e-05,2]
[347712773,1736077850900,-500.0,8.493e-05,2]
[347712774,1736077850909,-282.754514,8.493e-05,2]
[347712775,1736077850918,-500.0,8.493e-05,2]
[347712776,1736077850928,-500.0,8.493e-05,2]
[347712777,1736077850937,-500.0,8.493e-05,2]
[347712778,1736077850948,-614.12,8.493e-05,2]
[347712779,1736077850958,-500.0,8.493e-05,2]
[347712780,1736077850968,-500.0,8.493e-05,2]
[347712781,1736077850977,-500.0,8.493e-05,2]
[347712782,1736077850986,-500.0,8.493e-05,2]
[347712783,1736077850995,-2015.35,8.493e-05,2]
[347712784,1736077851005,-500.0,8.493e-05,2]
[347712785,1736077851017,-500.0,8.493e-05,2]
[347712786,1736077851028,-500.0,8.493e-05,2]
[347712787,1736077851037,-11657.42,8.493e-05,2]
[347712788,1736077851047,-2860.37,8.493e-05,2]
[347712789,1736077851058,-776.51,8.493e-05,2]
[347712790,1736077851068,-500.0,8.493e-05,2]
[347712791,1736077851078,-592.02,8.493e-05,2]
[347712792,1736077851088,-1055.64,8.493e-05,2]
[347712793,1736077851098,-1719.67,8.493e-05,2]
[347712794,1736077851108,-500.0,8.493e-05,2]
[347712795,1736077851118,-181.71366041,8.493e-05,2]
[347712796,1736077851128,-500.0,8.493e-05,2]
[347712797,1736077851139,-4243.83,8.493e-05,2]
[347712798,1736077851150,-500.0,8.493e-05,2]
[347712799,1736077851161,-6577.83,8.493e-05,2]
[347712800,1736077851170,-500.0,8.493e-05,2]
[347712801,1736077851179,-1904.42,8.493e-05,2]
[347712802,1736077851188,-712.42,8.493e-05,2]
[347712803,1736077851197,-500.0,8.493e-05,2]
[347712804,1736077851206,-4673.99,8.493e-05,2]
[347712805,1736077851216,-500.0,8.493e-05,2]
[347712806,1736077851226,-7032.4,8.493e-05,2]
[347712807,1736077851237,-813.11,8.493e-05,2]
[347712808,1736077851248,-911.49,8.493e-05,2]
[347712809,1736077851258,-500.0,8.493e-05,2]
[347712810,1736077851266,-4504.93,8.493e-05,2]
[347712811,1736077851276,-500.0,8.493e-05,2]
[347712812,1736077851287,-1698.03,8.493e-05,2]
[347712813,1736077851297,-1145.98,8.493e-05,2]
[347712814,1736077851308,-500.0,8.493e-05,2]
[347712815,1736077851318,-710.05,8.493e-05,2]
[347712816,1736077851328,-500.0,8.493e-05,2]
[347712817,1736077851339,-500.0,8.493e-05,2]
[347712818,1736077851348,-500.0,8.493e-05,2]
[347712819,1736077851358,-500.0,8.493e-05,2]
[347712820,1736077851369,-500.0,8.493e-05,2]
[347712821,1736077851381,-773.58,8.493e-05,2]
[347712822,1736077851390,-892.05,8.493e-05,2]
[347712823,1736077851399,-500.0,8.493e-05,2]
[347712824,1736077851408,-500.0,8.493e-05,2]
[347712825,1736077851422,-500.0,8.493e-05,2]
[347712826,1736077851432,-500.0,8.493e-05,2]
[347712827,1736077851442,-1067.33,8.493e-05,2]
[347712828,1736077851451,-1151.78,8.493e-05,2]
[347712829,1736077851461,-3036.51,8.493e-05,2]
[347712830,1736077851470,-2458.64,8.493e-05,2]
[347712831,1736077851479,-500.0,8.493e-05,2]
[347712832,1736077851489,-1718.34,8.493e-05,2]
[347712833,1736077851498,-1454.12,8.493e-05,2]
[347712834,1736077851508,-500.0,8.493e-05,2]
[347712835,1736077851517,-851.29,8.493e-05,2]
[347712836,1736077851526,-500.0,8.493e-05,2]
[347712837,1736077851535,-3993.07,8.493e-05,2]
[347712838,1736077851545,-500.0,8.493e-05,2]
[347712839,1736077851554,-500.0,8.493e-05,2]
[347712840,1736077851564,-2096.82,8.493e-05,2]
[347712841,1736077851573,-500.0,8.493e-05,2]
[347712842,1736077851582,-1089.35,8.493e-05,2]
[347712843,1736077851591,-500.0,8.493e-05,2]
[347712844,1736077851600,-892.7,8.493e-05,2]
[347712845,1736077851610,-500.0,8.493e-05,2]
[347712846,1736077851619,-1286.37,8.493e-05,2]
[347712847,1736077851630,-500.0,8.493e-05,2]
[347712848,1736077851640,-500.0,8.493e-05,2]
[347712849,1736077851649,-858.47,8.493e-05,2]
[347712850,1736077851659,-500.0,8.493e-05,2]
[347712851,1736077851669,-500.0,8.493e-05,2]
[347712852,1736077851679,-1752.2,8.493e-05,2]
[347712853,1736077851689,-1122.56,8.493e-05,2]
[347712854,1736077851698,-1127.93,8.493e-05,2]
[347712855,1736077851708,-500.0,8.493e-05,2]
[347712856,1736077851718,-500.0,8.493e-05,2]
[347712857,1736077851727,-929.99,8.493e-05,2]
[347712858,1736077851737,-1826.18,8.493e-05,2]
[347712859,1736077851746,-2522.13,8.493e-05,2]
[347712860,1736077851756,-960.74,8.493e-05,2]
[347712861,1736077851765,-691.4,8.493e-05,2]
[347712862,1736077851775,-1666.61,8.493e-05,2]
[347712863,1736077851784,-500.0,8.493e-05,2]
[347712864,1736077851794,-1167.04,8.493e-05,2]
[347712865,1736077851804,-991.36,8.493e-05,2]
[347712866,1736077851814,-500.0,8.493e-05,2]
[347712867,1736077851823,-500.0,8.493e-05,2]
[347712868,1736077851833,-500.0,8.493e-05,2]
[347712869,1736077851842,-500.0,8.493e-05,2]
[347712870,1736077851852,-500.0,8.493e-05,2]
[347712871,1736077851861,-500.0,8.493e-05,2]
[347712872,1736077851870,-357.28,8.493e-05,2]
[347712873,1736077851879,-330.903,8.59e-05,2]
[347712874,1736077851889,-1100.0,8.6e-05,3]
[347712875,1736077851898,-500.0,8.63e-05,2]
[347712876,1736077851911,-1400.0,8.7e-05,3]
[347712877,1736077851920,-1896.22,8.766e-05,2]
[347712878,1736077851930,-1465.16,8.766e-05,2]
[347712879,1736077851939,-2361.91,8.767e-05,2]
[347712880,1736077851948,-1674.92,8.767e-05,2]
[347712881,1736077851957,-500.0,8.767e-05,2]
[347712882,1736077851966,-1621.98,8.767e-05,2]
[347712883,1736077851975,-500.0,8.767e-05,2]
[347712884,1736077851985,-500.0,8.767e-05,2]
[347712885,1736077851994,-500.0,8.767e-05,2]
[347712886,1736077852002,-500.0,8.767e-05,2]
[347712887,1736077852011,-500.0,8.767e-05,2]
[347712888,1736077852020,-500.0,8.767e-05,2]
[347712889,1736077852030,-3386.48,8.767e-05,2]
[347712890,1736077852040,-500.0,8.767e-05,2]
[347712891,1736077852049,-500.0,8.767e-05,2]
[347712892,1736077852058,-500.0,8.767e-05,2]
[347712893,1736077852073,-500.0,8.767e-05,2]
[347712894,1736077852087,-503.47,8.767e-05,2]
[347712895,1736077852095,-500.0,8.767e-05,2]
[347712896,1736077852105,-500.0,8.767e-05,2]
[347712897,1736077852115,-4493.65,8.767e-05,2]
[347712898,1736077852124,-655.26,8.767e-05,2]
[347712899,1736077852133,-505.26,8.767e-05,2]
[347712900,1736077852142,-500.0,8.767e-05,2]
[347712901,1736077852152,-500.0,8.767e-05,2]
[347712902,1736077852162,-500.0,8.767e-05,2]
[347712903,1736077852171,-3455.18,8.767e-05,2]
[347712904,1736077852181,-500.0,8.767e-05,2]
[347712905,1736077852191,-500.0,8.767e-05,2]
[347712906,1736077852201,-500.0,8.767e-05,2]
[347712907,1736077852210,-500.0,8.767e-05,2]
[347712908,1736077852219,-500.0,8.767e-05,2]
[347712909,1736077852229,-500.0,8.767e-05,2]
[347712910,1736077852238,-500.0,8.767e-05,2]
[347712911,1736077852248,-500.0,8.767e-05,2]
[347712912,1736077852258,-500.0,8.767e-05,2]
[347712913,1736077852269,-500.0,8.767e-05,2]
[347712914,1736077852281,-503.65,8.767e-05,2]
[347712915,1736077852290,-500.0,8.767e-05,2]
[347712916,1736077852300,-2093.91,8.767e-05,2]
[347712917,1736077852311,-535.39,8.767e-05,2]
[347712918,1736077852320,-500.0,8.767e-05,2]
[347712919,1736077852331,-500.0,8.767e-05,2]
[347712920,1736077852340,-500.0,8.767e-05,2]
[347712921,1736077852348,-500.0,8.767e-05,2]
[347712922,1736077852357,-4909.36,8.767e-05,2]
[347712923,1736077852366,-500.0,8.767e-05,2]
[347712924,1736077852375,-500.0,8.767e-05,2]
[347712925,1736077852384,-768.45,8.767e-05,2]
[347712926,1736077852393,-500.0,8.767e-05,2]
[347712927,1736077852402,-501.86,8.767e-05,2]
[347712928,1736077852412,-660.06,8.767e-05,2]
[347712929,1736077852426,-500.0,8.767e-05,2]
[347712930,1736077852435,-500.0,8.767e-05,2]
[347712931,1736077852445,-329.06,8.767e-05,2]
[347712932,1736077852456,-1439.68,8.767e-05,2]
[347712933,1736077852466,-500.0,8.767e-05,2]
[347712934,1736077852475,-500.0,8.767e-05,2]
[347712935,1736077852484,-597.85,8.767e-05,2]
[347712936,1736077852494,-500.0,8.767e-05,2]
[347712937,1736077852503,-215.1,8.767e-05,2]
[347712938,1736077852512,-1447.38,8.767e-05,2]
[347712939,1736077852522,-500.0,8.767e-05,2]
[347712940,1736077852531,-500.0,8.767e-05,2]
[347712941,1736077852540,-617.4,8.767e-05,2]
[347712942,1736077852549,-500.0,8.767e-05,2]
[347712943,1736077852558,-890.36,8.767e-05,2]
[347712944,1736077852567,-500.0,8.767e-05,2]
[347712945,1736077852576,-897.02,8.767e-05,2]
[347712946,1736077852586,-500.0,8.767e-05,2]
[347712947,1736077852595,-500.0,8.767e-05,2]
[347712948,1736077852604,-514.55,8.767e-05,2]
[347712949,1736077852614,-713.57,8.767e-05,2]
[347712950,1736077852623,-500.0,8.767e-05,2]
[347712951,1736077852632,-606.82,8.767e-05,2]
[347712952,1736077852641,-500.0,8.767e-05,2]
[347712953,1736077852650,-500.0,8.767e-05,2]
[347712954,1736077852660,-500.0,8.767e-05,2]
[347712955,1736077852669,-500.0,8.767e-05,2]
[347712956,1736077852679,-757.44,8.767e-05,2]
[347712957,1736077852689,-500.0,8.767e-05,2]
[347712958,1736077852698,-1184.81,8.767e-05,2]
[347712959,1736077852707,-500.0,8.767e-05,2]
[347712960,1736077852716,-500.0,8.767e-05,2]
[347712961,1736077852726,-216.24,8.767e-05,2]
[347712962,1736077852735,-722.49,8.767e-05,2]
[347712963,1736077852745,-500.0,8.767e-05,2]
[347712964,1736077852754,-500.0,8.767e-05,2]
[347712965,1736077852764,-1641.6,8.767e-05,2]
[347712966,1736077852773,-758.18,8.767e-05,2]
[347712967,1736077852782,-564.09,8.767e-05,2]
[347712968,1736077852791,-2326.73,8.767e-05,2]
[347712969,1736077852800,-500.0,8.767e-05,2]
[347712970,1736077852809,-874.81,8.767e-05,2]
[347712971,1736077852819,-1135.34,8.767e-05,2]
[347712972,1736077852828,-1289.57,8.767e-05,2]
[347712973,1736077852837,-500.0,8.767e-05,2]
[347712974,1736077852846,-500.0,8.767e-05,2]
[347712975,1736077852855,-603.7,8.767e-05,2]
[347712976,1736077852864,-916.01,8.767e-05,2]
[347712977,1736077852873,-374.88,8.767e-05,2]
[347712978,1736077852882,-583.76,8.767e-05,2]
[347712979,1736077852892,-500.0,8.767e-05,2]
[347712980,1736077852901,-551.11,8.767e-05,2]
[347712981,1736077852910,-1685.45,8.767e-05,2]
[347712982,1736077852920,-1340.17,8.767e-05,2]
[347712983,1736077852929,-2464.65,8.767e-05,2]
[347712984,1736077852938,-582.22,8.767e-05,2]
[347712985,1736077852947,-900.6,8.767e-05,2]
[347712986,1736077852957,-1329.92,8.767e-05,2]
[347712987,1736077852967,-786.78,8.767e-05,2]
[347712988,1736077852976,-743.02,8.767e-05,2]
[347712989,1736077852986,-1147.49,8.767e-05,2]
[347712990,1736077852995,-500.0,8.767e-05,2]
[347712991,1736077853005,-690.8,8.767e-05,2]
[347712992,1736077853014,-500.0,8.767e-05,2]
[347712993,1736077853024,-597.29,8.767e-05,2]
[347712994,1736077853033,-527.65,8.767e-05,2]
[347712995,1736077853042,-657.19,8.767e-05,2]
[347712996,1736077853051,-500.0,8.767e-05,2]
[347712997,1736077853060,-1630.28,8.767e-05,2]
[347712998,1736077853069,-713.19,8.767e-05,2]
[347712999,1736077853078,-270.96,8.767e-05,2]
[347713000,1736077853087,-500.0,8.767e-05,2]
[347713001,1736077853096,-500.0,8.767e-05,2]
[347713002,1736077853105,-865.01,8.767e-05,2]
[347713003,1736077853115,-500.0,8.767e-05,2]
[347713004,1736077853124,-560.06,8.767e-05,2]
[347713005,1736077853134,-656.48,8.767e-05,2]
[347713006,1736077853143,-500.0,8.767e-05,2]
[347713007,1736077853153,-500.0,8.767e-05,2]
[347713008,1736077853162,-799.98,8.767e-05,2]
[347713009,1736077853171,-1370.84,8.767e-05,2]
[347713010,1736077853181,-500.0,8.767e-05,2]
[347713011,1736077853191,-500.0,8.767e-05,2]
[347713012,1736077853200,-720.23,8.767e-05,2]
[347713013,1736077853209,-1174.05,8.767e-05,2]
[347713014,1736077853219,-535.83,8.767e-05,2]
[347713015,1736077853228,-500.0,8.767e-05,2]
[347713016,1736077853237,-1100.99,8.767e-05,2]
[347713017,1736077853246,-500.0,8.767e-05,2]
[347713018,1736077853255,-500.0,8.767e-05,2]
[347713019,1736077853265,-742.07,8.767e-05,2]
[347713020,1736077853275,-846.77,8.767e-05,2]
[347713021,1736077853285,-500.0,8.767e-05,2]
[347713022,1736077853295,-1559.95,8.767e-05,2]
[347713023,1736077853304,-788.73,8.767e-05,2]
[347713024,1736077853314,-1389.11,8.767e-05,2]
[347713025,1736077853323,-500.0,8.767e-05,2]
[347713026,1736077853332,-500.0,8.767e-05,2]
[347713027,1736077853341,-2013.48,8.767e-05,2]
[347713028,1736077853351,-500.0,8.767e-05,2]
[347713029,1736077853361,-2906.9,8.767e-05,2]
[347713030,1736077853370,-500.0,8.767e-05,2]
[347713031,1736077853380,-500.0,8.767e-05,2]
[347713032,1736077853390,-500.0,8.767e-05,2]
[347713033,1736077853399,-500.0,8.767e-05,2]
[347713034,1736077853409,-500.0,8.767e-05,2]
[347713035,1736077853423,-1498.5,8.767e-05,2]
[347713036,1736077853433,-699.23,8.767e-05,2]
[347713037,1736077853442,-1506.83,8.767e-05,2]
[347713038,1736077853452,-770.93,8.767e-05,2]
[347713039,1736077853462,-1218.28,8.767e-05,2]
[347713040,1736077853471,-500.0,8.767e-05,2]
[347713041,1736077853481,-1089.33,8.767e-05,2]
[347713042,1736077853491,-500.0,8.767e-05,2]
[347713043,1736077853500,-500.0,8.767e-05,2]
[347713044,1736077853510,-820.66,8.767e-05,2]
[347713045,1736077853520,-500.0,8.767e-05,2]
[347713046,1736077853529,-632.38,8.767e-05,2]
[347713047,1736077853539,-500.0,8.767e-05,2]
[347713048,1736077853548,-686.96,8.767e-05,2]
[347713049,1736077853558,-978.19,8.767e-05,2]
[347713050,1736077853568,-500.0,8.767e-05,2]
[347713051,1736077853577,-890.17,8.767e-05,2]
[347713052,1736077853587,-500.0,8.767e-05,2]
[347713053,1736077853601,-500.0,8.767e-05,2]
[347713054,1736077853612,-500.0,8.767e-05,2]
[347713055,1736077853622,-744.13,8.767e-05,2]
[347713056,1736077853634,-500.0,8.767e-05,2]
[347713057,1736077853644,-2315.0,8.767e-05,2]
[347713058,1736077853654,-500.0,8.767e-05,2]
[347713059,1736077853664,-930.54,8.767e-05,2]
[347713060,1736077853674,-721.43,8.767e-05,2]
[347713061,1736077853684,-500.0,8.767e-05,2]
[347713062,1736077853695,-500.0,8.767e-05,2]
[347713063,1736077853705,-1252.67,8.767e-05,2]
[347713064,1736077853715,-500.0,8.767e-05,2]
[347713065,1736077853725,-500.0,8.767e-05,2]
[347713066,1736077853735,-2913.28,8.767e-05,2]
[347713067,1736077853744,-774.57,8.767e-05,2]
[347713068,1736077853754,-2177.81,8.767e-05,2]
[347713069,1736077853767,-897.91,8.767e-05,2]
[347713070,1736077853776,-511.93,8.767e-05,2]
[347713071,1736077853786,-354.81,8.767e-05,2]
[347713072,1736077853798,-2171.65,8.767e-05,2]
[347713073,1736077853810,-500.0,8.767e-05,2]
[347713074,1736077853822,-500.0,8.767e-05,2]
[347713075,1736077853832,-2317.89,8.767e-05,2]
[347713076,1736077853843,-500.0,8.767e-05,2]
[347713077,1736077853853,-867.55,8.767e-05,2]
[347713078,1736077853863,-527.01,8.767e-05,2]
[347713079,1736077853874,-803.4,8.767e-05,2]
[347713080,1736077853884,-500.0,8.767e-05,2]
[347713081,1736077853894,-1302.69,8.767e-05,2]
[347713082,1736077853904,-1086.66,8.767e-05,2]
[347713083,1736077853915,-749.15,8.767e-05,2]
[347713084,1736077853925,-565.13,8.767e-05,2]
[347713085,1736077853936,-1986.45,8.767e-05,2]
[347713086,1736077853946,-856.06,8.767e-05,2]
[347713087,1736077853957,-2363.84,8.767e-05,2]
[347713088,1736077853967,-623.49,8.767e-05,2]
[347713089,1736077853978,-764.85,8.767e-05,2]
[347713090,1736077853987,-500.0,8.767e-05,2]
[347713091,1736077853998,-500.0,8.767e-05,2]
[347713092,1736077854008,-727.71,8.767e-05,2]
[347713093,1736077854019,-500.0,8.767e-05,2]
[347713094,1736077854030,-1852.11,8.767e-05,2]
[347713095,1736077854040,-584.32,8.767e-05,2]
[347713096,1736077854051,-640.46,8.767e-05,2]
[347713097,1736077854061,-1550.64,8.767e-05,2]
[347713098,1736077854071,-1783.14,8.767e-05,2]
[347713099,1736077854082,-531.36,8.767e-05,2]
[347713100,1736077854093,-1213.26,8.767e-05,2]
[347713101,1736077854104,-500.0,8.767e-05,2]
[347713102,1736077854116,-500.0,8.767e-05,2]
[347713103,1736077854127,-500.0,8.767e-05,2]
[347713104,1736077854137,-1908.11,8.767e-05,2]
[347713105,1736077854148,-500.0,8.767e-05,2]
[347713106,1736077854159,-500.0,8.767e-05,2]
[347713107,1736077854170,-500.0,8.767e-05,2]
[347713108,1736077854180,-641.67,8.767e-05,2]
[347713109,1736077854190,-500.0,8.767e-05,2]
[347713110,1736077854202,-3640.86,8.767e-05,2]
[347713111,1736077854212,-3065.63,8.767e-05,2]
[347713112,1736077854222,-500.0,8.767e-05,2]
[347713113,1736077854232,-1070.96,8.767e-05,2]
[347713114,1736077854243,-500.0,8.767e-05,2]
[347713115,1736077854255,-500.0,8.767e-05,2]
[347713116,1736077854266,-578.08,8.767e-05,2]
[347713117,1736077854277,-1399.43,8.767e-05,2]
[347713118,1736077854287,-500.0,8.767e-05,2]
[347713119,1736077854298,-500.0,8.767e-05,2]
[347713120,1736077854308,-500.0,8.767e-05,2]
[347713121,1736077854318,-500.0,8.767e-05,2]
[347713122,1736077854328,-500.0,8.767e-05,2]
[347713123,1736077854339,-500.0,8.767e-05,2]
[347713124,1736077854350,-396.58979266,8.767e-05,2]
[347713125,1736077854362,-519.71,8.767e-05,2]
[347713126,1736077854371,-500.0,8.767e-05,2]
[347713127,1736077854382,-500.0,8.767e-05,2]
[347713128,1736077854392,-732.34,8.767e-05,2]
[347713129,1736077854402,-707.82,8.767e-05,2]
[347713130,1736077854413,-2098.99,8.767e-05,2]
[347713131,1736077854427,-740.06,8.767e-05,2]
[347713132,1736077854437,-500.0,8.767e-05,2]
[347713133,1736077854447,-500.0,8.767e-05,2]
[347713134,1736077854456,-6012.7,8.767e-05,2]
[347713135,1736077854467,-796.45,8.767e-05,2]
[347713136,1736077854477,-500.0,8.767e-05,2]
[347713137,1736077854487,-500.0,8.767e-05,2]
[347713138,1736077854499,-500.0,8.767e-05,2]
[347713139,1736077854510,-853.48,8.767e-05,2]
[347713140,1736077854521,-500.0,8.767e-05,2]
[347713141,1736077854531,-500.0,8.767e-05,2]
[347713142,1736077854541,-5593.14,8.767e-05,2]
[347713143,1736077854550,-500.0,8.767e-05,2]
[347713144,1736077854560,-2047.77,8.767e-05,2]
[347713145,1736077854570,-500.0,8.767e-05,2]
[347713146,1736077854581,-964.08,8.767e-05,2]
[347713147,1736077854591,-933.81,8.767e-05,2]
[347713148,1736077854601,-500.0,8.767e-05,2]
[347713149,1736077854611,-702.7,8.767e-05,2]
[347713150,1736077854623,-500.0,8.767e-05,2]
[347713151,1736077854634,-700.64,8.767e-05,2]
[347713152,1736077854644,-789.92,8.767e-05,2]
[347713153,1736077854655,-500.0,8.767e-05,2]
[347713154,1736077854665,-500.0,8.767e-05,2]
[347713155,1736077854676,-500.0,8.767e-05,2]
[347713156,1736077854686,-604.79,8.767e-05,2]
[347713157,1736077854696,-1141.75,8.767e-05,2]
[347713158,1736077854707,-500.0,8.767e-05,2]
[347713159,1736077854717,-500.0,8.767e-05,2]
[347713160,1736077854727,-500.0,8.767e-05,2]
[347713161,1736077854738,-500.0,8.767e-05,2]
[347713162,1736077854748,-500.0,8.767e-05,2]
[347713163,1736077854758,-500.0,8.767e-05,2]
[347713164,1736077854768,-861.87,8.767e-05,2]
[347713165,1736077854778,-500.0,8.767e-05,2]
[347713166,1736077854788,-621.86,8.767e-05,2]
[347713167,1736077854798,-3575.88,8.767e-05,2]
[347713168,1736077854809,-500.0,8.767e-05,2]
[347713169,1736077854820,-675.19,8.767e-05,2]
[347713170,1736077854831,-500.0,8.767e-05,2]
[347713171,1736077854842,-1451.45,8.767e-05,2]
[347713172,1736077854851,-631.93,8.767e-05,2]
[347713173,1736077854861,-500.0,8.767e-05,2]
[347713174,1736077854872,-1044.61,8.767e-05,2]
[347713175,1736077854882,-500.0,8.767e-05,2]
[347713176,1736077854892,-796.85,8.767e-05,2]
[347713177,1736077854903,-891.67,8.767e-05,2]
[347713178,1736077854913,-500.0,8.767e-05,2]
[347713179,1736077854923,-553.01,8.767e-05,2]
[347713180,1736077854934,-558.0,8.767e-05,2]
[347713181,1736077854944,-2422.63,8.767e-05,2]
[347713182,1736077854954,-500.0,8.767e-05,2]
[347713183,1736077854964,-1153.73,8.767e-05,2]
[347713184,1736077854973,-500.0,8.767e-05,2]
[347713185,1736077854983,-1238.51,8.767e-05,2]
[347713186,1736077854993,-882.11,8.767e-05,2]
[347713187,1736077855003,-500.0,8.767e-05,2]
[347713188,1736077855013,-500.0,8.767e-05,2]
[347713189,1736077855024,-936.55,8.767e-05,2]
[347713190,1736077855033,-598.63,8.767e-05,2]
[347713191,1736077855043,-4094.6,8.767e-05,2]
[347713192,1736077855052,-500.0,8.767e-05,2]
[347713193,1736077855062,-1565.14,8.767e-05,2]
[347713194,1736077855072,-1545.81,8.767e-05,2]
[347713195,1736077855086,-5467.77,8.767e-05,2]
[347713196,1736077855098,-500.0,8.767e-05,2]
[347713197,1736077855109,-500.0,8.767e-05,2]
[347713198,1736077855120,-500.0,8.767e-05,2]
[347713199,1736077855130,-500.0,8.767e-05,2]
[347713200,1736077855142,-500.0,8.767e-05,2]
[347713201,1736077855152,-500.0,8.767e-05,2]
[347713202,1736077855163,-4960.26,8.767e-05,2]
[347713203,1736077855175,-500.0,8.767e-05,2]
[347713204,1736077855185,-500.0,8.767e-05,2]
[347713205,1736077855196,-500.0,8.767e-05,2]
[347713206,1736077855207,-920.55,8.767e-05,2]
[347713207,1736077855218,-500.0,8.767e-05,2]
[347713208,1736077855228,-500.0,8.767e-05,2]
[347713209,1736077855239,-1172.65244,8.767e-05,2]
[347713210,1736077855250,-500.0,8.767e-05,2]
[347713211,1736077855261,-861.97,8.767e-05,2]
[347713212,1736077855272,-1676.16,8.767e-05,2]
[347713213,1736077855282,-1506.56,8.767e-05,2]
[347713214,1736077855292,-500.0,8.767e-05,2]
[347713215,1736077855302,-544.29,8.767e-05,2]
[347713216,1736077855312,-500.0,8.767e-05,2]
[347713217,1736077855323,-500.0,8.767e-05,2]
[347713218,1736077855333,-500.0,8.767e-05,2]
[347713219,1736077855343,-5003.34,8.767e-05,2]
[347713220,1736077855354,-500.0,8.767e-05,2]
[347713221,1736077855365,-500.0,8.767e-05,2]
[347713222,1736077855375,-5455.76,8.767e-05,2]
[347713223,1736077855387,-500.0,8.767e-05,2]
[347713224,1736077855397,-500.0,8.767e-05,2]
[347713225,1736077855407,-736.71,8.767e-05,2]
[347713226,1736077855420,-500.0,8.767e-05,2]
[347713227,1736077855431,-500.13,8.767e-05,2]
[347713228,1736077855442,-500.0,8.767e-05,2]
[347713229,1736077855451,-500.0,8.767e-05,2]